fUSD/lending_fUSD_20250905
["ID","MTS","AMOUNT","RATE_DAILY","PERIOD"]
[383762315,1757109200773,-677.0,0.00038356,10]
[383762316,1757109200782,-400.0,0.00038356,10]
[383762317,1757109200791,-1085.17,0.00038356,10]
[383762318,1757109200801,-400.0,0.00038356,10]
[383762319,1757109200810,-3844.91,0.00038356,10]
[383762320,1757109200820,-1689.46,0.00038356,10]
[383762321,1757109200830,-421.08,0.00038356,10]
[383762322,1757109200840,-400.0,0.00038356,10]
[383762323,1757109200849,-877.43,0.00038356,10]
[383762324,1757109200860,-400.0,0.00038356,10]
[383762325,1757109200870,-537.76,0.00038356,10]
[383762326,1757109200880,-400.0,0.00038356,10]
[383762327,1757109200890,-436.27,0.00038356,10]
[383762328,1757109200899,-479.41,0.00038356,10]
[383762329,1757109200908,-400.0,0.00038356,10]
[383762330,1757109200918,-400.0,0.00038356,10]
[383762331,1757109200927,-400.0,0.00038356,10]
[383762332,1757109200936,-931.34,0.00038356,10]
[383762333,1757109200945,-400.0,0.00038356,10]
[383762334,1757109200955,-400.0,0.00038356,10]
[383762335,1757109200965,-400.0,0.00038356,10]
[383762336,1757109200977,-2095.01,0.00038356,10]
[383762337,1757109200988,-434.12,0.00038356,10]
[383762338,1757109200997,-400.0,0.00038356,10]
[383762339,1757109201006,-400.0,0.00038356,10]
[383762340,1757109201016,-1265.08,0.00038356,10]
[383762341,1757109201027,-828.12,0.00038356,10]
[383762342,1757109201036,-400.0,0.00038356,10]
[383762343,1757109201045,-490.29,0.00038356,10]
[383762344,1757109201055,-365.81402932,0.00038356,10]
[383762345,1757109201065,-407.95,0.00038356,10]
[383762346,1757109201074,-445.3,0.00038356,10]
[383762347,1757109201084,-1988.71,0.00038356,10]
[383762348,1757109201093,-400.0,0.00038356,10]
[383762349,1757109201102,-400.0,0.00038356,10]
[383762350,1757109201112,-1987.61,0.00038356,120]
[383762351,1757109201121,-400.0,0.00038356,10]
[383762352,1757109201130,-400.0,0.00038356,10]
[383762353,1757109201139,-531.57,0.00038356,10]
[383762354,1757109201149,-428.34,0.00038356,10]
[383762355,1757109201158,-401.29,0.00038356,10]
[383762356,1757109201168,-720.58,0.00038356,10]
[383762357,1757109201177,-400.0,0.00038356,10]
[383762358,1757109201187,-400.0,0.00038356,10]
[383762359,1757109201197,-400.0,0.00038356,10]
[383762360,1757109201207,-400.0,0.00038356,10]
[383762361,1757109201216,-400.0,0.00038356,10]
[383762362,1757109201227,-471.02,0.00038356,10]
[383762363,1757109201236,-400.0,0.00038356,10]
[383762364,1757109201246,-2254.56,0.00038356,10]
[383762365,1757109201255,-786.84,0.00038356,10]
[383762366,1757109201264,-400.0,0.00038356,10]
[383762367,1757109201274,-493.33,0.00038356,10]
[383762368,1757109201284,-1906.65,0.00038356,10]
[383762369,1757109201294,-400.0,0.00038356,10]
[383762370,1757109201303,-400.0,0.00038356,10]
[383762371,1757109201313,-3337.86,0.00038356,10]
[383762372,1757109201322,-400.0,0.00038356,10]
[383762373,1757109201332,-400.0,0.00038356,10]
[383762374,1757109201341,-400.0,0.00038356,10]
[383762375,1757109201351,-404.67,0.00038356,10]
[383762376,1757109201360,-516.46,0.00038356,10]
[383762377,1757109201370,-911.18,0.00038356,10]
[383762378,1757109201379,-511.96,0.00038356,10]
[383762379,1757109201388,-488.47,0.00038356,10]
[383762380,1757109201398,-1977.28,0.00038356,10]
[383762381,1757109201408,-400.0,0.00038356,10]
[383762382,1757109201419,-401.17,0.00038356,10]
[383762383,1757109201428,-457.95,0.00038356,10]
[383762384,1757109201437,-400.0,0.00038356,10]
[383762385,1757109201447,-527.02,0.00038356,10]
[383762386,1757109201456,-400.0,0.00038356,10]
[383762387,1757109201465,-400.0,0.00038356,10]
[383762388,1757109201476,-400.0,0.00038356,10]
[383762389,1757109201486,-697.63,0.00038356,10]
[383762390,1757109201495,-689.76,0.00038356,10]
[383762391,1757109201506,-400.0,0.00038356,10]
[383762392,1757109201516,-6963.13,0.00038356,10]
[383762393,1757109201526,-433.65,0.00038356,10]
[383762394,1757109201535,-419.06,0.00038356,10]
[383762395,1757109201545,-400.0,0.00038356,10]
[383762396,1757109201554,-400.0,0.00038356,10]
[383762397,1757109201563,-436.45,0.00038356,10]
[383762398,1757109201573,-1232.95,0.00038356,10]
[383762399,1757109201584,-400.0,0.00038356,10]
[383762400,1757109201594,-618.53,0.00038356,10]
[383762401,1757109201603,-410.62,0.00038356,10]
[383762402,1757109201613,-170.07550922,0.000384,120]
[383762403,1757109201623,-500.0,0.00038412,5]
[383762404,1757109201633,-500.0,0.00038424,7]
[383762405,1757109201643,-164.53,0.00038433,2]
[383762406,1757109201653,-1178.96147,0.00038488,30]
[383762407,1757109201663,-299.79,0.00038493,21]
[383762408,1757109201673,-41723.16,0.000385,14]
[383762409,1757109201683,-13159.05,0.000385,30]
[383762410,1757109201692,-212.0,0.0003861,30]
[383762411,1757109201702,-200.0,0.0003861,2]
[383762412,1757109201712,-2227.17601,0.0003861,2]
[383762413,1757109201722,-339.30249,0.0003863,10]
[383762414,1757109201731,-634.468343,0.0003863,10]
[383762415,1757109201740,-400.0,0.0003863,10]
[383762416,1757109201750,-400.0,0.0003863,10]
[383762417,1757109201759,-400.0,0.0003863,10]
[383762418,1757109201769,-400.0,0.0003863,10]
[383762419,1757109201778,-400.0,0.0003863,10]
[383762420,1757109201788,-400.0,0.0003863,10]
[383762421,1757109201800,-400.0,0.0003863,10]
[383762422,1757109201810,-417.8,0.0003863,10]
[383762423,1757109201820,-400.0,0.0003863,10]
[383762424,1757109201829,-400.0,0.0003863,10]
[383762425,1757109201839,-400.0,0.0003863,10]
[383762426,1757109201849,-400.0,0.0003863,10]
[383762427,1757109201859,-184.6,0.0003863,10]
[383762428,1757109201869,-400.0,0.0003863,10]
[383762429,1757109201879,-250.16931366,0.0003863,10]
[383762430,1757109201888,-400.0,0.0003863,10]
[383762431,1757109201898,-400.0,0.0003863,10]
[383762432,1757109201907,-400.0,0.0003863,10]
[383762433,1757109201919,-400.0,0.0003863,10]
[383762434,1757109201929,-375.99530441,0.0003863,10]
[383762435,1757109201939,-400.0,0.0003863,10]
[383762436,1757109201949,-400.0,0.0003863,10]
[383762437,1757109201959,-400.0,0.0003863,10]
[383762438,1757109201969,-400.0,0.0003863,10]
[383762439,1757109201980,-400.0,0.0003863,10]
[383762440,1757109201990,-400.0,0.0003863,10]
[383762441,1757109201999,-400.0,0.0003863,10]
[383762442,1757109202009,-400.0,0.0003863,10]
[383762443,1757109202019,-400.0,0.0003863,10]
[383762444,1757109202029,-400.0,0.0003863,10]
[383762445,1757109202039,-400.0,0.0003863,10]
[383762446,1757109202049,-944.57,0.0003863,10]
[383762447,1757109202059,-400.0,0.0003863,10]
[383762448,1757109202075,-300.0,0.0003863,10]
[383762449,1757109202086,-400.0,0.0003863,10]
[383762450,1757109202096,-400.0,0.0003863,10]
[383762451,1757109202106,-400.0,0.0003863,10]
[383762452,1757109202121,-846.07,0.0003863,10]
[383762453,1757109202132,-400.0,0.0003863,10]
[383762454,1757109202144,-400.0,0.0003863,10]
[383762455,1757109202155,-400.0,0.0003863,10]
[383762456,1757109202165,-400.0,0.0003863,10]
[383762457,1757109202175,-400.0,0.0003863,10]
[383762458,1757109202186,-400.0,0.0003863,10]
[383762459,1757109202196,-400.0,0.0003863,10]
[383762460,1757109202206,-564.87,0.0003863,10]
[383762461,1757109202215,-765.62,0.0003863,10]
[383762462,1757109202226,-400.0,0.0003863,10]
[383762463,1757109202236,-400.0,0.0003863,10]
[383762464,1757109202246,-400.0,0.0003863,10]
[383762465,1757109202257,-426.87648257,0.0003863,10]
[383762466,1757109202267,-400.0,0.0003863,10]
[383762467,1757109202276,-400.0,0.0003863,10]
[383762468,1757109202287,-400.0,0.0003863,10]
[383762469,1757109202297,-400.0,0.0003863,10]
[383762470,1757109202307,-400.0,0.0003863,10]
[383762471,1757109202316,-400.0,0.0003863,10]
[383762472,1757109202326,-517.37760724,0.0003863,10]
[383762473,1757109202336,-400.0,0.0003863,10]
[383762474,1757109202347,-433.33,0.0003863,10]
[383762475,1757109202357,-400.0,0.0003863,10]
[383762476,1757109202367,-1155.55,0.0003863,10]
[383762477,1757109202377,-400.0,0.0003863,10]
[383762478,1757109202387,-400.0,0.0003863,10]
[383762479,1757109202397,-400.0,0.0003863,10]
[383762480,1757109202407,-400.0,0.0003863,10]
[383762481,1757109202417,-532.70290081,0.0003863,10]
[383762482,1757109202427,-405.24,0.0003863,10]
[383762483,1757109202437,-678.29,0.0003863,10]
[383762484,1757109202447,-400.0,0.0003863,10]
[383762485,1757109202458,-400.0,0.0003863,10]
[383762486,1757109202467,-414.11,0.0003863,10]
[383762487,1757109202478,-413.3,0.0003863,10]
[383762488,1757109202487,-400.0,0.0003863,10]
[383762489,1757109202497,-400.0,0.0003863,10]
[383762490,1757109202507,-400.0,0.0003863,10]
[383762491,1757109202517,-400.0,0.0003863,10]
[383762492,1757109202527,-400.0,0.0003863,10]
[383762493,1757109202536,-400.0,0.0003863,10]
[383762494,1757109202547,-418.03,0.0003863,10]
[383762495,1757109202557,-400.0,0.0003863,10]
[383762496,1757109202567,-400.0,0.0003863,10]
[383762497,1757109202576,-400.0,0.0003863,10]
[383762498,1757109202587,-177.52768661,0.0003863,10]
[383762499,1757109202598,-400.0,0.0003863,10]
[383762500,1757109202607,-400.0,0.0003863,10]
[383762501,1757109202617,-400.0,0.0003863,10]
[383762502,1757109202627,-400.0,0.0003863,10]
[383762503,1757109202638,-400.0,0.0003863,10]
[383762504,1757109202649,-400.0,0.0003863,10]
[383762505,1757109202659,-400.0,0.0003863,10]
[383762506,1757109202669,-420.25,0.0003863,10]
[383762507,1757109202679,-437.75,0.0003863,10]
[383762508,1757109202689,-400.0,0.0003863,10]
[383762509,1757109202698,-400.0,0.0003863,10]
[383762510,1757109202708,-506.4,0.0003863,10]
[383762511,1757109202720,-496.4985229,0.0003863,10]
[383762512,1757109202730,-437.87,0.0003863,10]
[383762513,1757109202741,-400.0,0.0003863,10]
[383762514,1757109202752,-400.0,0.0003863,10]
[383762515,1757109202763,-480.89636908,0.0003863,10]
[383762516,1757109202774,-451.2,0.0003863,10]
[383762517,1757109202784,-400.0,0.0003863,10]
[383762518,1757109202795,-507.92,0.0003863,10]
[383762519,1757109202805,-400.0,0.0003863,10]
[383762520,1757109202816,-400.0,0.0003863,10]
[383762521,1757109202827,-400.0,0.0003863,10]
[383762522,1757109202837,-400.0,0.0003863,10]
[383762523,1757109202848,-400.0,0.0003863,10]
[383762524,1757109202858,-400.0,0.0003863,10]
[383762525,1757109202869,-400.0,0.0003863,10]
[383762526,1757109202879,-400.0,0.0003863,10]
[383762527,1757109202889,-461.35,0.0003863,10]
[383762528,1757109202900,-458.84,0.0003863,10]
[383762529,1757109202910,-400.0,0.0003863,10]
[383762530,1757109202921,-428.49,0.0003863,10]
[383762531,1757109202931,-1054.45,0.0003863,10]
[383762532,1757109202941,-409.45,0.0003863,10]
[383762533,1757109202951,-400.0,0.0003863,10]
[383762534,1757109202961,-400.0,0.0003863,10]
[383762535,1757109202971,-400.0,0.0003863,10]
[383762536,1757109202986,-542.29,0.0003863,10]
[383762537,1757109202996,-508.21,0.0003863,10]
[383762538,1757109203007,-400.0,0.0003863,10]
[383762539,1757109203017,-400.0,0.0003863,10]
[383762540,1757109203027,-493.63,0.0003863,10]
[383762541,1757109203037,-425.32,0.0003863,10]
[383762542,1757109203048,-518.21,0.0003863,10]
[383762543,1757109203058,-449.3,0.0003863,10]
[383762544,1757109203069,-510.04,0.0003863,10]
[383762545,1757109203079,-400.0,0.0003863,10]
[383762546,1757109203090,-414.48,0.0003863,10]
[383762547,1757109203100,-400.0,0.0003863,10]
[383762548,1757109203111,-400.0,0.0003863,10]
[383762549,1757109203121,-153.113189,0.0003863,10]
[383762550,1757109203132,-400.0,0.0003863,10]
[383762551,1757109203143,-970.87,0.0003863,10]
[383762552,1757109203153,-490.71,0.0003863,10]
[383762553,1757109203163,-436.72,0.0003863,10]
[383762554,1757109203174,-414.95,0.0003863,10]
[383762555,1757109203185,-400.0,0.0003863,10]
[383762556,1757109203196,-400.0,0.0003863,10]
[383762557,1757109203207,-400.0,0.0003863,10]
[383762558,1757109203218,-447.82,0.0003863,10]
[383762559,1757109203229,-647.6,0.0003863,10]
[383762560,1757109203239,-400.0,0.0003863,10]
[383762561,1757109203250,-400.0,0.0003863,10]
[383762562,1757109203261,-400.0,0.0003863,10]
[383762563,1757109203272,-425.6,0.0003863,10]
[383762564,1757109203283,-400.0,0.0003863,10]
[383762565,1757109203294,-490.57,0.0003863,10]
[383762566,1757109203304,-400.0,0.0003863,10]
[383762567,1757109203315,-400.0,0.0003863,10]
[383762568,1757109203325,-641.44,0.0003863,10]
[383762569,1757109203336,-400.0,0.0003863,10]
[383762570,1757109203347,-419.23,0.0003863,10]
[383762571,1757109203358,-403.59,0.0003863,10]
[383762572,1757109203369,-401.8,0.0003863,10]
[383762573,1757109203379,-400.0,0.0003863,10]
[383762574,1757109203388,-400.0,0.0003863,10]
[383762575,1757109203397,-400.0,0.0003863,10]
[383762576,1757109203406,-400.0,0.0003863,10]
[383762577,1757109203415,-548.51,0.0003863,10]
[383762578,1757109203424,-452.54,0.0003863,10]
[383762579,1757109203434,-400.0,0.0003863,10]
[383762580,1757109203445,-440.39,0.0003863,10]
[383762581,1757109203456,-400.0,0.0003863,10]
[383762582,1757109203466,-679.14,0.0003863,10]
[383762583,1757109203478,-433.62,0.0003863,10]
[383762584,1757109203488,-332.37,0.0003863,10]
[383762585,1757109203499,-400.0,0.0003863,10]
[383762586,1757109203510,-400.0,0.0003863,10]
[383762587,1757109203520,-589.1,0.0003863,10]
[383762588,1757109203531,-551.08,0.0003863,10]
[383762589,1757109203541,-415.82,0.0003863,10]
[383762590,1757109203552,-576.99,0.0003863,10]
[383762591,1757109203562,-400.0,0.0003863,10]
[383762592,1757109203572,-455.37,0.0003863,10]
[383762593,1757109203583,-410.32,0.0003863,10]
[383762594,1757109203594,-400.0,0.0003863,10]
[383762595,1757109203606,-497.74,0.0003863,10]
[383762596,1757109203618,-400.0,0.0003863,10]
[383762597,1757109203629,-498.14,0.0003863,10]
[383762598,1757109203641,-878.01,0.0003863,10]
[383762599,1757109203652,-400.0,0.0003863,10]
[383762600,1757109203664,-400.0,0.0003863,10]
[383762601,1757109203675,-1227.44,0.0003863,10]
[383762602,1757109203686,-400.0,0.0003863,10]
[383762603,1757109203698,-400.0,0.0003863,10]
[383762604,1757109203709,-601.8,0.0003863,10]
[383762605,1757109203721,-400.0,0.0003863,10]
[383762606,1757109203733,-400.0,0.0003863,10]
[383762607,1757109203744,-400.0,0.0003863,10]
[383762608,1757109203756,-404.89,0.0003863,10]
[383762609,1757109203767,-400.0,0.0003863,10]
[383762610,1757109203779,-414.05,0.0003863,10]
[383762611,1757109203790,-562.13,0.0003863,10]
[383762612,1757109203801,-400.0,0.0003863,10]
[383762613,1757109203812,-400.0,0.0003863,10]
[383762614,1757109203823,-457.02,0.0003863,10]
[383762615,1757109203834,-400.0,0.0003863,10]
[383762616,1757109203845,-519.36,0.0003863,10]
[383762617,1757109203857,-400.0,0.0003863,10]
[383762618,1757109203868,-400.0,0.0003863,10]
[383762619,1757109203879,-400.0,0.0003863,10]
[383762620,1757109203890,-400.0,0.0003863,10]
[383762621,1757109203902,-400.0,0.0003863,10]
[383762622,1757109203920,-400.0,0.0003863,10]
[383762623,1757109203932,-464.19,0.0003863,10]
[383762624,1757109203944,-400.0,0.0003863,10]
[383762625,1757109203957,-509.57,0.0003863,10]
[383762626,1757109203968,-400.0,0.0003863,10]
[383762627,1757109203987,-400.0,0.0003863,10]
[383762628,1757109203998,-400.0,0.0003863,10]
[383762629,1757109204009,-400.0,0.0003863,10]
[383762630,1757109204020,-536.82,0.0003863,10]
[383762631,1757109204032,-400.0,0.0003863,10]
[383762632,1757109204044,-400.0,0.0003863,10]
[383762633,1757109204056,-400.0,0.0003863,10]
[383762634,1757109204067,-456.25,0.0003863,10]
[383762635,1757109204092,-400.0,0.0003863,10]
[383762636,1757109204108,-400.0,0.0003863,10]
[383762637,1757109204119,-400.0,0.0003863,10]
[383762638,1757109204131,-400.0,0.0003863,10]
[383762639,1757109204141,-400.0,0.0003863,10]
[383762640,1757109204153,-400.0,0.0003863,10]
[383762641,1757109204164,-1325.01,0.0003863,10]
[383762642,1757109204174,-662.17,0.0003863,10]
[383762643,1757109204185,-400.0,0.0003863,10]
[383762644,1757109204197,-475.33,0.0003863,10]
[383762645,1757109204208,-580.54,0.0003863,10]
[383762646,1757109204219,-403.3525589,0.0003863,10]
[383762647,1757109204231,-468.08,0.0003863,10]
[383762648,1757109204241,-400.0,0.0003863,10]
[383762649,1757109204253,-400.0,0.0003863,10]
[383762650,1757109204264,-400.0,0.0003863,10]
[383762651,1757109204275,-504.21,0.0003863,10]
[383762652,1757109204287,-400.0,0.0003863,10]
[383762653,1757109204297,-470.77,0.0003863,10]
[383762654,1757109204308,-400.0,0.0003863,10]
[383762655,1757109204320,-417.63,0.0003863,10]
[383762656,1757109204331,-400.0,0.0003863,10]
[383762657,1757109204343,-400.0,0.0003863,10]
[383762658,1757109204356,-406.01,0.0003863,10]
[383762659,1757109204368,-400.0,0.0003863,10]
[383762660,1757109204380,-400.0,0.0003863,10]
[383762661,1757109204393,-560.94,0.0003863,10]
[383762662,1757109204405,-400.0,0.0003863,10]
[383762663,1757109204417,-671.39,0.0003863,10]
[383762664,1757109204428,-660.54,0.0003863,10]
[383762665,1757109204441,-400.0,0.0003863,10]
[383762666,1757109204728,-400.0,0.0003863,10]
[383762667,1757109204763,-400.0,0.0003863,10]
[383762668,1757109204775,-400.0,0.0003863,10]
[383762669,1757109204786,-400.0,0.0003863,10]
[383762670,1757109204797,-505.54,0.0003863,10]
[383762671,1757109204808,-400.0,0.0003863,2]
[383762672,1757109204819,-400.0,0.0003863,10]
[383762673,1757109204830,-400.0,0.0003863,10]
[383762674,1757109204842,-400.0,0.0003863,10]
[383762675,1757109204853,-493.62,0.0003863,10]
[383762676,1757109204864,-556.02,0.0003863,10]
[383762677,1757109204875,-514.72,0.0003863,10]
[383762678,1757109204886,-400.0,0.0003863,10]
[383762679,1757109204897,-456.07,0.0003863,10]
[383762680,1757109204908,-1553.38,0.0003863,10]
[383762681,1757109204920,-737.77,0.0003863,10]
[383762682,1757109204932,-400.0,0.0003863,10]
[383762683,1757109204945,-400.0,0.0003863,10]
[383762684,1757109204956,-521.95,0.0003863,10]
[383762685,1757109204968,-418.68,0.0003863,10]
[383762686,1757109204982,-583.81,0.0003863,10]
[383762687,1757109204993,-400.0,0.0003863,10]
[383762688,1757109205004,-400.0,0.0003863,10]
[383762689,1757109205015,-430.27,0.0003863,10]
[383762690,1757109205026,-498.62,0.0003863,10]
[383762691,1757109205037,-400.0,0.0003863,10]
[383762692,1757109205047,-579.68,0.0003863,10]
[383762693,1757109205057,-425.45,0.0003863,10]
[383762694,1757109205068,-691.22,0.0003863,10]
[383762695,1757109205078,-400.0,0.0003863,7]
[383762696,1757109205089,-400.0,0.0003863,10]
[383762697,1757109205100,-601.12,0.0003863,10]
[383762698,1757109205110,-400.0,0.0003863,10]
[383762699,1757109205122,-400.0,0.0003863,10]
[383762700,1757109205133,-400.0,0.0003863,10]
[383762701,1757109205145,-400.0,0.0003863,10]
[383762702,1757109205157,-401.24,0.0003863,10]
[383762703,1757109205169,-607.93,0.0003863,10]
[383762704,1757109205180,-1060.4,0.0003863,10]
[383762705,1757109205191,-487.13,0.0003863,10]
[383762706,1757109205202,-400.0,0.0003863,10]
[383762707,1757109205213,-565.1,0.0003863,10]
[383762708,1757109205226,-400.0,0.0003863,10]
[383762709,1757109205237,-400.0,0.0003863,10]
[383762710,1757109205248,-643.16,0.0003863,10]
[383762711,1757109205259,-599.17,0.0003863,10]
[383762712,1757109205270,-408.11,0.0003863,10]
[383762713,1757109205281,-400.0,0.0003863,10]
[383762714,1757109205291,-400.0,0.0003863,10]
[383762715,1757109205301,-400.0,0.0003863,10]
[383762716,1757109205311,-400.0,0.0003863,10]
[383762717,1757109205322,-567.22,0.0003863,10]
[383762718,1757109205332,-400.0,0.0003863,10]
[383762719,1757109205343,-400.0,0.0003863,10]
[383762720,1757109205354,-400.0,0.0003863,10]
[383762721,1757109205365,-400.0,0.0003863,10]
[383762722,1757109205376,-587.89,0.0003863,10]
[383762723,1757109205387,-400.0,0.0003863,10]
[383762724,1757109205397,-649.4,0.0003863,10]
[383762725,1757109205407,-400.0,0.0003863,10]
[383762726,1757109205418,-444.03,0.0003863,10]
[383762727,1757109205428,-540.45,0.0003863,10]
[383762728,1757109205439,-521.91,0.0003863,10]
[383762729,1757109205450,-400.0,0.0003863,10]
[383762730,1757109205460,-577.54,0.0003863,10]
[383762731,1757109205473,-400.0,0.0003863,10]
[383762732,1757109205483,-455.87,0.0003863,10]
[383762733,1757109205494,-400.0,0.0003863,10]
[383762734,1757109205505,-606.17,0.0003863,10]
[383762735,1757109205517,-400.0,0.0003863,10]
[383762736,1757109205528,-400.0,0.0003863,10]
[383762737,1757109205539,-552.86,0.0003863,10]
[383762738,1757109205550,-400.0,0.0003863,10]
[383762739,1757109205561,-738.19,0.0003863,10]
[383762740,1757109205572,-400.0,0.0003863,10]
[383762741,1757109205583,-400.0,0.0003863,10]
[383762742,1757109205595,-400.0,0.0003863,10]
[383762743,1757109205606,-400.0,0.0003863,10]
[383762744,1757109205617,-400.0,0.0003863,10]
[383762745,1757109205628,-485.13,0.0003863,10]
[383762746,1757109205639,-400.0,0.0003863,10]
[383762747,1757109205651,-400.0,0.0003863,10]
[383762748,1757109205662,-400.0,0.0003863,10]
[383762749,1757109205673,-400.0,0.0003863,10]
[383762750,1757109205683,-497.92,0.0003863,10]
[383762751,1757109205694,-534.68,0.0003863,10]
[383762752,1757109205704,-434.21,0.0003863,10]
[383762753,1757109205715,-400.0,0.0003863,10]
[383762754,1757109205728,-400.0,0.0003863,10]
[383762755,1757109205739,-400.0,0.0003863,10]
[383762756,1757109205750,-400.0,0.0003863,10]
[383762757,1757109205761,-400.0,0.0003863,10]
[383762758,1757109205771,-400.0,0.0003863,10]
[383762759,1757109205782,-400.0,0.0003863,10]
[383762760,1757109205793,-400.0,0.0003863,10]
[383762761,1757109205803,-400.0,0.0003863,10]
[383762762,1757109205813,-400.0,0.0003863,10]
[383762763,1757109205824,-697.19,0.0003863,10]
[383762764,1757109205833,-588.33,0.0003863,10]
[383762765,1757109205844,-400.0,0.0003863,10]
[383762766,1757109205855,-467.87,0.0003863,10]
[383762767,1757109205865,-400.0,0.0003863,10]
[383762768,1757109205875,-400.0,0.0003863,10]
[383762769,1757109205886,-400.0,0.0003863,10]
[383762770,1757109205896,-400.0,0.0003863,10]
[383762771,1757109205907,-400.0,0.0003863,10]
[383762772,1757109205918,-400.0,0.0003863,10]
[383762773,1757109205929,-400.0,0.0003863,10]
[383762774,1757109205939,-400.0,0.0003863,10]
[383762775,1757109205950,-434.97,0.0003863,10]
[383762776,1757109205960,-400.0,0.0003863,10]
[383762777,1757109205971,-290.60658115,0.0003863,10]
[383762778,1757109205986,-547.22,0.0003863,10]
[383762779,1757109205996,-9387.3,0.0003863,10]
[383762780,1757109206006,-400.0,0.0003863,10]
[383762781,1757109206016,-438.16,0.0003863,10]
[383762782,1757109206027,-400.44,0.0003863,10]
[383762783,1757109206038,-400.0,0.0003863,10]
[383762784,1757109206048,-467.62,0.0003863,10]
[383762785,1757109206059,-506.66,0.0003863,10]
[383762786,1757109206071,-400.0,0.0003863,10]
[383762787,1757109206082,-400.0,0.0003863,10]
[383762788,1757109206093,-400.0,0.0003863,10]
[383762789,1757109206104,-400.0,0.0003863,10]
[383762790,1757109206115,-400.0,0.0003863,10]
[383762791,1757109206126,-422.62,0.0003863,10]
[383762792,1757109206136,-400.0,0.0003863,10]
[383762793,1757109206147,-406.5,0.0003863,10]
[383762794,1757109206159,-773.54,0.0003863,10]
[383762795,1757109206171,-400.0,0.0003863,10]
[383762796,1757109206181,-765.31,0.0003863,10]
[383762797,1757109206193,-401.2,0.0003863,10]
[383762798,1757109206203,-400.0,0.0003863,10]
[383762799,1757109206214,-400.0,0.0003863,10]
[383762800,1757109206227,-400.0,0.0003863,10]
[383762801,1757109206238,-417.09,0.0003863,10]
[383762802,1757109206249,-441.78,0.0003863,10]
[383762803,1757109206260,-400.0,0.0003863,10]
[383762804,1757109206271,-400.0,0.0003863,10]
[383762805,1757109206281,-400.0,0.0003863,10]
[383762806,1757109206291,-400.0,0.0003863,10]
[383762807,1757109206301,-258.27100964,0.0003863,10]
[383762808,1757109206311,-553.83,0.0003863,10]
[383762809,1757109206321,-546.26,0.0003863,10]
[383762810,1757109206331,-400.0,0.0003863,10]
[383762811,1757109206341,-400.0,0.0003863,10]
[383762812,1757109206352,-441.15,0.0003863,10]
[383762813,1757109206362,-785.59,0.0003863,10]
[383762814,1757109206373,-437.91,0.0003863,10]